fUSD/lending_fUSD_20260109
["ID","MTS","AMOUNT","RATE_DAILY","PERIOD"]
[401129929,1767949845851,-1290.672977,0.000179,2]
[401129930,1767949845861,-1749.663834,0.000179,2]
[401129931,1767949845871,-2378.928147,0.000179,2]
[401129932,1767949845881,-1290.672977,0.000179,2]
[401129934,1767949845891,-927.067124,0.000179,2]
[401129936,1767949845901,-927.067124,0.000179,2]
[401129938,1767949845911,-2378.928147,0.000179,2]
[401129940,1767949845919,-927.067124,0.000179,2]
[401129943,1767949845929,-927.067124,0.000179,2]
[401129945,1767949845939,-2378.928147,0.000179,2]
[401129947,1767949845948,-1966.90301028,0.000179,2]
[401129949,1767949845957,-151.0,0.000179,2]
[401129951,1767949845967,-151.0,0.000179,2]
[401129953,1767949845976,-280.30467,0.000179,2]
[401129954,1767949845986,-690.446226,0.000179,2]
[401129955,1767949845995,-690.446226,0.000179,2]
[401129956,1767949846005,-5522.96516044,0.000179,2]
[401129957,1767949846016,-690.446226,0.000179,2]
[401129958,1767949846026,-690.446226,0.000179,2]
[401129959,1767949846036,-4106.764814,0.000179,2]
[401129960,1767949846045,-4106.764814,0.000179,2]
[401129961,1767949846056,-373.230619,0.000179,2]
[401129962,1767949846065,-332.214435,0.000179,2]
[401129964,1767949846074,-4106.764814,0.000179,2]
[401129965,1767949846083,-373.230619,0.000179,2]
[401129966,1767949846093,-920.574913,0.000179,2]
[401129967,1767949846103,-332.214435,0.000179,2]
[401129968,1767949846112,-4106.764814,0.000179,2]
[401129969,1767949846122,-373.230619,0.000179,2]
[401129970,1767949846131,-297.140674,0.000179,2]
[401129971,1767949846141,-920.574913,0.000179,2]
[401129972,1767949846150,-332.214435,0.000179,2]
[401129973,1767949846159,-373.230619,0.000179,2]
[401129974,1767949846169,-151.0,0.000179,2]
[401129975,1767949846178,-297.140674,0.000179,2]
[401129976,1767949846187,-920.574913,0.000179,2]
[401129977,1767949846196,-332.214435,0.000179,2]
[401129978,1767949846205,-297.140674,0.000179,2]
[401129979,1767949846215,-920.574913,0.000179,2]
[401129980,1767949846224,-151.0,0.000179,2]
[401129981,1767949846233,-297.140674,0.000179,2]
[401129982,1767949846243,-1978.368862,0.000179,2]
[401129983,1767949846252,-1978.368862,0.000179,2]
[401129984,1767949846262,-1050.006679,0.000179,2]
[401129985,1767949846271,-1978.368862,0.000179,2]
[401129986,1767949846281,-1050.006679,0.000179,2]
[401129987,1767949846290,-1978.368862,0.000179,2]
[401129988,1767949846300,-1050.006679,0.000179,2]
[401129989,1767949846309,-151.0,0.000179,2]
[401129990,1767949846319,-1050.006679,0.000179,2]
[401129991,1767949846328,-151.0,0.000179,2]
[401129992,1767949846337,-151.0,0.000179,2]
[401129993,1767949846346,-151.0,0.000179,2]
[401129994,1767949846356,-2056.110172,0.000179,2]
[401129995,1767949846364,-2056.110172,0.000179,2]
[401129996,1767949846374,-2056.110172,0.000179,2]
[401129997,1767949846384,-2056.110172,0.000179,2]
[401129998,1767949846393,-151.0,0.000179,2]
[401129999,1767949846404,-151.0,0.000179,2]
[401130000,1767949846414,-151.0,0.000179,2]
[401130001,1767949846423,-151.0,0.000179,2]
[401130002,1767949846433,-151.0,0.000179,2]
[401130003,1767949846443,-396.415369,0.000179,2]
[401130004,1767949846452,-396.415369,0.000179,2]
[401130005,1767949846462,-533.9999989,0.000179,2]
[401130006,1767949846471,-396.415369,0.000179,2]
[401130007,1767949846480,-396.415369,0.000179,2]
[401130008,1767949846489,-151.0,0.000179,2]
[401130009,1767949846498,-621.00502664,0.000179,2]
[401130010,1767949846508,-906.513466,0.000179,2]
[401130011,1767949846517,-151.0,0.000179,2]
[401130012,1767949846527,-906.513466,0.000179,2]
[401130013,1767949846538,-906.513466,0.000179,2]
[401130014,1767949846547,-906.513466,0.000179,2]
[401130015,1767949846557,-275.980319,0.000179,2]
[401130016,1767949846567,-275.980319,0.000179,2]
[401130017,1767949846577,-455.71742,0.000179,2]
[401130018,1767949846586,-275.980319,0.000179,2]
[401130019,1767949846597,-455.71742,0.000179,2]
[401130020,1767949846607,-275.980319,0.000179,2]
[401130021,1767949846617,-455.71742,0.000179,2]
[401130022,1767949846628,-529.205152,0.000179,2]
[401130023,1767949846638,-843.943433,0.000179,2]
[401130024,1767949846648,-455.71742,0.000179,2]
[401130025,1767949846658,-777.07641,0.000179,2]
[401130026,1767949846667,-500.0,0.000179,2]
[401130027,1767949846676,-500.0,0.000179,2]
[401130028,1767949846686,-500.0,0.000179,2]
[401130029,1767949846696,-500.0,0.000179,2]
[401130030,1767949846706,-500.0,0.000179,2]
[401130031,1767949846715,-363.73506313,0.000179,2]
[401130032,1767949846725,-1000.0,0.00017902,2]
[401130033,1767949846735,-1000.0,0.00017912,2]
[401130034,1767949846744,-150.0,0.00017912,2]
[401130035,1767949846754,-1000.0,0.00017921,2]
[401130036,1767949846764,-2165.0,0.00017922,2]
[401130037,1767949846775,-1000.0,0.00017925,2]
[401130038,1767949846785,-1000.0,0.00017933,2]
[401130039,1767949846795,-150.0,0.00017956,2]
[401130040,1767949846804,-1000.0,0.00017957,2]
[401130041,1767949846814,-1000.0,0.00017965,2]
[401130042,1767949846823,-1000.0,0.00017967,2]
[401130043,1767949846832,-300.0,0.00017969,2]
[401130044,1767949846841,-300.0,0.00017969,2]
[401130045,1767949846851,-548.49326873,0.00017969,2]
[401130046,1767949846860,-300.0,0.00017969,2]
[401130047,1767949846869,-500.0,0.00017969,2]
[401130048,1767949846880,-500.0,0.00017969,2]
[401130049,1767949846889,-500.0,0.00017969,2]
[401130050,1767949846899,-150.0,0.00017969,2]
[401130051,1767949846908,-300.0,0.00017969,2]
[401130052,1767949846918,-631454.6499878,0.0001797,2]
[401130053,1767949846927,-2915.1891499,0.0001797,2]
[401130054,1767949846937,-3074.2697644,0.0001797,2]
[401130055,1767949846946,-6870.4918544,0.0001797,2]
[401130056,1767949846956,-151.0,0.0001797,2]
[401130057,1767949846965,-151.0,0.0001797,2]
[401130058,1767949846975,-151.0,0.0001797,2]
[401130059,1767949846984,-169.303544,0.0001797,2]
[401130060,1767949846993,-151.0,0.0001797,2]
[401130061,1767949847002,-151.0,0.0001797,2]
[401130062,1767949847013,-151.0,0.0001797,2]
[401130063,1767949847025,-151.0,0.0001797,2]
[401130064,1767949847034,-151.0,0.0001797,2]
[401130065,1767949847043,-151.0,0.0001797,2]
[401130066,1767949847052,-151.0,0.0001797,2]
[401130067,1767949847063,-151.0,0.0001797,2]
[401130068,1767949847072,-151.0,0.0001797,2]
[401130069,1767949847083,-151.0,0.0001797,2]
[401130070,1767949847094,-151.0,0.0001797,2]
[401130071,1767949847104,-110.697613,0.0001797,2]
[401130072,1767949847518,-556.64348934,0.000179,2]
[401130073,1767949847530,-287.29994366,0.000179,2]
[401130074,1767949847540,-75.111607,0.0001797,2]
[401130075,1767949847550,-151.0,0.0001797,2]
[401130076,1767949847560,-43.27783162,0.0001797,2]
[401130077,1767949848515,-777.07641,0.0001783,2]
[401130078,1767949848524,-256.52315996,0.0001783,2]
[401130079,1767949848536,-272.68199204,0.0001783,2]
[401130080,1767949848545,-57.55888718,0.0001783,2]
[401130081,1767949849095,-151.0,0.00015462,2]
[401130082,1767949849104,-315.77974192,0.00017123,2]
[401130083,1767949849126,-4503.22025808,0.00017123,2]
[401130084,1767949849135,-786.38454582,0.0001783,2]
[401130085,1767949849144,-777.07641,0.0001783,2]
[401130086,1767949849153,-529.205152,0.0001783,2]
[401130087,1767949849163,-843.943433,0.0001783,2]
[401130088,1767949849173,-777.07641,0.0001783,2]
[401130089,1767949849182,-151.0,0.0001783,2]
[401130090,1767949849192,-529.205152,0.000179,2]
[401130091,1767949849202,-96.1886391,0.000179,2]
[401130092,1767949849216,-680.8877709,0.000179,2]
[401130093,1767949849225,-318.1122291,0.000179,2]
[401130114,1767950313565,173.9,7.214e-05,2]
[401130115,1767950562283,242.2397005,0.0002,30]
[401130116,1767950615267,15349.75648844,0.0002,30]
[401130119,1767950734541,-2506.21,0.00013882,2]
[401130120,1767950734576,-1200.0,0.0001393,2]
[401130121,1767950734595,-2506.21,0.00013931,2]
[401130122,1767950734611,-1200.0,0.00013931,2]
[401130123,1767950734645,-4587.58,0.00013931,2]
[401130124,1767950769106,5000.0,0.00014,3]
[401130125,1767950793126,-187.535068,0.00013931,2]
[401130144,1767951031583,-1739.81415307,0.00013573,2]
[401130146,1767951031747,-832.33893487,0.00013573,2]
[401130147,1767951031760,-495.74682973,0.00013573,2]
[401130148,1767951032063,-1374.32512854,0.00013573,2]
[401130149,1767951032884,-146.55495379,0.00013573,2]
[401130150,1767951032894,-300.0,0.0001383,2]
[401130151,1767951032904,-1200.0,0.0001383,2]
[401130152,1767951032913,-168.86770516,0.00013831,2]
[401130153,1767951032923,-424.79128439,0.00013831,2]
[401130154,1767951032934,-871.0,0.00013831,2]
[401130155,1767951032946,-941.85870651,0.00013831,2]
[401130156,1767951032957,-511.86844531,0.00013831,2]
[401130157,1767951037733,-694.46353124,0.00013831,2]
[401130158,1767951037745,-2099.48056182,0.00013831,2]
[401130159,1767951037754,-153.55065548,0.00013831,2]
[401130160,1767951037764,-153.55065548,0.00013831,2]
[401130161,1767951037775,-500.0,0.00013877,2]
[401130162,1767951037786,-500.0,0.00013877,2]
[401130163,1767951037796,-500.0,0.00013877,2]
[401130164,1767951037805,-500.0,0.00013877,2]
[401130165,1767951037814,-500.0,0.00013877,2]
[401130166,1767951037826,-393.54978868,0.00013877,2]
[401130167,1767951037836,-500.0,0.00013877,2]
[401130168,1767951037845,-500.0,0.00013877,2]
[401130169,1767951037855,-500.0,0.00013877,2]
[401130170,1767951037867,-500.0,0.00013877,2]
[401130171,1767951037876,-500.0,0.00013877,2]
[401130172,1767951037885,-500.0,0.00013877,2]
[401130173,1767951037896,-500.0,0.00013877,2]
[401130174,1767951037905,-500.0,0.00013877,2]
[401130175,1767951037915,-500.0,0.00013877,2]
[401130176,1767951037924,-500.0,0.00013877,2]
[401130177,1767951037933,-500.0,0.00013877,2]
[401130178,1767951037943,-500.0,0.00013877,2]
[401130179,1767951037952,-150.0,0.00013877,2]
[401130180,1767951037962,-406.77471141,0.00013878,2]
[401130181,1767951037971,-1108.53742027,0.00013879,2]
[401130182,1767951038012,-2816.86303894,0.00013879,2]
[401130189,1767951038104,-2868.26562916,0.00013879,2]
[401130350,1767951039755,-6251.40605885,0.00013879,2]
[401130352,1767951039766,-986954.92785278,0.00013879,2]
[401130354,1767951039776,-6898.434932,0.00013931,2]
[401130356,1767951039786,-4552.34,0.0001398,2]
[401130358,1767951039795,-200.0,0.00014103,2]
[401130360,1767951039804,-150.0,0.00014119,2]
[401130362,1767951039813,-187.53,0.0001415,2]
[401130364,1767951039825,-250.0,0.00014174,2]
[401130366,1767951039834,-5543.46252923,0.00014283,2]
[401130368,1767951039842,-500.0,0.00014294,2]
[401130370,1767951039852,-1173.6735,0.00014294,2]
[401130372,1767951039861,-2500.0,0.00014294,2]
[401130374,1767951039870,-2107.05119166,0.00014298,2]
[401130376,1767951039880,-1852.42,0.00014303,2]
[401130378,1767951039888,-151.0,0.00014385,2]
[401130380,1767951039899,-151.0,0.00014385,2]
[401130382,1767951039908,-151.0,0.00014385,2]
[401130384,1767951039917,-151.0,0.00014385,2]
[401130386,1767951039927,-151.0,0.00014385,2]
[401130388,1767951039935,-151.0,0.00014385,2]
[401130390,1767951039945,-151.0,0.00014385,2]
[401130392,1767951039954,-151.0,0.00014385,2]
[401130394,1767951039963,-151.0,0.00014385,2]
[401130396,1767951039972,-151.0,0.00014385,2]
[401130398,1767951039981,-151.0,0.00014385,2]
[401130400,1767951039991,-151.0,0.00014385,2]
[401130402,1767951039999,-151.0,0.00014385,2]
[401130404,1767951040009,-151.0,0.00014385,2]
[401130406,1767951040018,-160.89416707,0.00014385,2]
[401130408,1767951040027,-151.0,0.00014385,2]
[401130410,1767951040036,-151.0,0.00014385,2]
[401130412,1767951040045,-151.0,0.00014385,2]
[401130414,1767951040054,-151.0,0.00014385,2]
[401130416,1767951040064,-151.0,0.00014385,2]
[401130418,1767951040073,-151.0,0.00014385,2]
[401130419,1767951040081,-151.0,0.00014385,2]
[401130420,1767951040091,-151.0,0.00014385,2]
[401130421,1767951040099,-151.0,0.00014385,2]
[401130422,1767951040108,-151.0,0.00014385,2]
[401130423,1767951040117,-151.0,0.00014385,2]
[401130424,1767951040127,-151.0,0.00014385,2]
[401130425,1767951040136,-163.464,0.00014393,2]
[401130426,1767951040146,-1551.443,0.00014393,2]
[401130427,1767951040155,-500.0,0.00014393,2]
[401130428,1767951040163,-500.0,0.00014393,2]
[401130429,1767951040173,-500.0,0.00014393,2]
[401130430,1767951040181,-500.0,0.00014393,2]
[401130431,1767951040191,-500.0,0.00014393,2]
[401130432,1767951040200,-500.0,0.00014393,2]
[401130433,1767951040209,-500.0,0.00014393,2]
[401130434,1767951040218,-500.0,0.00014393,2]
[401130435,1767951040228,-500.0,0.00014393,2]
[401130436,1767951040237,-1000.0,0.00014398,2]
[401130437,1767951040246,-5507.54,0.00014456,2]
[401130438,1767951040255,-239.2738313,0.00014484,2]
[401130439,1767951040264,-500.0,0.00014493,2]
[401130440,1767951040273,-180256.43026974,0.00014494,2]
[401130442,1767951040599,-8688.39973026,0.00014494,2]
[401130443,1767951040608,-168.86770516,0.00014645,2]
[401130444,1767951040619,-153.55065546,0.00014645,2]
[401130445,1767951040628,-153.55065546,0.00014645,2]
[401130446,1767951040637,-2107.05119164,0.00014698,2]
[401130447,1767951040646,-5543.46252923,0.00014735,2]
[401130448,1767951040655,-500.0,0.00014763,2]
[401130449,1767951040664,-500.0,0.00014763,2]
[401130450,1767951040674,-5000.0,0.00014813,2]
[401130451,1767951040683,-255.0,0.00015001,2]
[401130452,1767951040692,-2107.05119164,0.00015098,2]
[401130453,1767951040702,-420.0,0.00015154,2]
[401130454,1767951040711,-5543.46252923,0.00015187,2]
[401130455,1767951040720,-1680.0,0.00015213,2]
[401130456,1767951040730,-195.0,0.00015213,2]
[401130457,1767951040738,-1478.99155943,0.00015213,2]
[401130458,1767951040747,-1000.0,0.0001531,2]
[401130459,1767951040756,-1000.0,0.0001531,2]
[401130460,1767951040765,-507.09614172,0.000154,2]
[401130461,1767951040774,-168.86770516,0.00015459,2]
[401130462,1767951040783,-153.55065546,0.00015459,2]
[401130463,1767951040792,-2107.05119164,0.00015499,2]
[401130464,1767951040802,-155.42,0.00015549,2]
[401130465,1767951040811,-5543.46252923,0.00015639,2]
[401130466,1767951040823,-5000.0,0.00015813,2]
[401130467,1767951040834,-1500.0,0.00015858,2]
[401130468,1767951040843,-2107.05119164,0.00015899,2]
[401130469,1767951040853,-3032.36692446,0.00016,2]
[401130470,1767951040862,-4336.36,0.00016054,2]
[401130471,1767951040871,-5543.46252923,0.00016092,2]
[401130472,1767951040881,-150.0,0.000162,2]
[401130473,1767951040890,-6736.77306895,0.000162,5]
[401130474,1767951040899,-250.0,0.00016222,2]
[401130475,1767951040908,-166.66,0.00016229,2]
[401130476,1767951040917,-150.0,0.00016244,2]
[401130477,1767951040926,-168.86770516,0.00016272,2]
[401130478,1767951040936,-150.0,0.00016288,2]
[401130479,1767951040945,-2107.05119164,0.00016299,2]
[401130480,1767951040954,-150.0,0.00016332,2]
[401130481,1767951040963,-150.0,0.00016376,2]
[401130482,1767951040973,-1000.0,0.00016406,2]
[401130483,1767951040982,-150.0,0.0001642,2]
[401130484,1767951040991,-21623.92,0.00016438,2]
[401130485,1767951041001,-164.77,0.0001644,2]
[401130486,1767951041010,-150.0,0.00016463,2]
[401130487,1767951041019,-150.0,0.00016507,2]
[401130488,1767951041028,-1237.7,0.00016543,2]
[401130489,1767951041038,-5543.46252923,0.00016544,2]
[401130490,1767951041048,-150.0,0.00016551,2]
[401130491,1767951041057,-166.66,0.00016571,2]
[401130492,1767951041066,-150.0,0.00016595,2]
[401130493,1767951041075,-587.0,0.00016605,2]
[401130494,1767951041084,-150.0,0.00016639,2]
[401130495,1767951041094,-1237.7,0.00016675,2]
[401130496,1767951041103,-150.0,0.00016683,2]
[401130497,1767951041112,-2107.05119164,0.00016699,2]
[401130498,1767951041121,-150.0,0.00016727,2]
[401130499,1767951041130,-2351.0,0.00016734,2]
[401130500,1767951041139,-150.0,0.00016771,2]
[401130501,1767951041149,-1237.7,0.00016808,2]
[401130502,1767951041158,-5000.0,0.00016813,2]
[401130503,1767951041167,-150.0,0.00016815,2]
[401130504,1767951041176,-150.0,0.00016859,2]
[401130505,1767951041185,-150.0,0.00016902,2]
[401130506,1767951041195,-166.66,0.00016912,2]
[401130507,1767951041203,-1237.7,0.0001694,2]
[401130508,1767951041214,-150.0,0.00016946,2]
[401130509,1767951041225,-2709.0,0.00016959,2]
[401130510,1767951041236,-150.0,0.0001699,2]
[401130511,1767951041245,-5543.46252923,0.00016996,2]
[401130512,1767951041256,-1335.8084311,0.00017,2]
[401130513,1767951041334,-2167.7215689,0.00017,2]
[401130514,1767951041343,-3503.53,0.00017,2]
[401130515,1767951041353,-3503.53,0.00017,2]
[401130516,1767951041362,-3503.53,0.00017,2]
[401130517,1767951041372,-2000.61975215,0.00017,2]
[401130518,1767951041381,-776.2472,0.00017,2]
[401130519,1767951041391,-250.0,0.00017,2]
[401130520,1767951041402,-160.0,0.00017,2]
[401130521,1767951041411,-158.98723841,0.00017019,2]
[401130522,1767951041421,-150.0,0.00017034,2]
[401130523,1767951041430,-578.20924308,0.0001704,2]
[401130524,1767951041439,-151.0,0.0001704,2]
[401130525,1767951041448,-250.0,0.0001704,2]
[401130526,1767951041458,-250.0,0.0001704,2]
[401130527,1767951041467,-1000.0,0.0001704,2]
[401130528,1767951041476,-250.0,0.0001704,2]
[401130529,1767951041485,-1000.0,0.0001704,2]
[401130530,1767951041495,-250.0,0.0001704,2]
[401130531,1767951041504,-1000.0,0.0001704,2]
[401130532,1767951041514,-250.0,0.0001704,2]
[401130533,1767951041523,-1000.0,0.0001704,2]
[401130534,1767951041532,-250.0,0.0001704,2]
[401130535,1767951041542,-322.6107,0.0001704,2]
[401130536,1767951041551,-250.0,0.0001704,2]
[401130537,1767951041560,-250.0,0.0001704,2]
[401130538,1767951041569,-553.64373807,0.0001704,2]
[401130539,1767951041579,-250.0,0.0001704,2]
[401130540,1767951041587,-250.0,0.0001704,2]
[401130541,1767951041597,-250.0,0.0001704,2]
[401130542,1767951041606,-250.0,0.0001704,2]
[401130543,1767951041617,-250.0,0.0001704,2]
[401130544,1767951041625,-250.0,0.0001704,2]
[401130545,1767951041635,-250.0,0.0001704,2]
[401130546,1767951041644,-250.0,0.0001704,2]
[401130547,1767951041653,-263.62842174,0.0001704,2]
[401130548,1767951041663,-250.0,0.0001704,2]
[401130549,1767951041672,-250.0,0.0001704,2]
[401130550,1767951041681,-250.0,0.0001704,2]
[401130551,1767951041691,-250.0,0.0001704,2]
[401130552,1767951041700,-250.0,0.0001704,2]
[401130553,1767951041709,-250.0,0.0001704,2]
[401130554,1767951041718,-266.32377282,0.0001704,2]
[401130555,1767951041727,-620.0,0.0001704,2]
[401130556,1767951041736,-250.0,0.0001704,2]
[401130557,1767951041746,-250.0,0.0001704,2]
[401130558,1767951041755,-250.0,0.0001704,2]
[401130559,1767951041765,-250.0,0.0001704,2]
[401130560,1767951041775,-250.0,0.0001704,2]
[401130561,1767951041786,-250.0,0.0001704,2]
[401130562,1767951041797,-250.0,0.0001704,2]
[401130563,1767951041806,-250.0,0.0001704,2]
[401130564,1767951041816,-576.66,0.0001704,2]
[401130565,1767951041827,-1237.7,0.00017073,2]
[401130566,1767951041837,-150.0,0.00017078,2]
[401130567,1767951041846,-168.86770516,0.00017086,2]
[401130568,1767951041855,-2107.05119164,0.000171,2]
[401130569,1767951041866,-2709.0,0.00017102,2]
[401130570,1767951041876,-150.0,0.00017122,2]
[401130571,1767951041885,-150.0,0.00017166,2]
[401130572,1767951041895,-1237.7,0.00017205,2]
[401130573,1767951041904,-150.0,0.0001721,2]
[401130574,1767951041913,-150.0,0.00017254,2]
[401130575,1767951041922,-166.66,0.00017254,2]
[401130576,1767951041931,-150.0,0.00017298,2]
[401130577,1767951041940,-1000.0,0.000173,2]
[401130578,1767951041949,-2709.0,0.00017306,2]
[401130579,1767951041958,-576.66,0.00017314,2]
[401130580,1767951041967,-1237.7,0.00017338,2]
[401130581,1767951041977,-150.0,0.00017341,2]
[401130582,1767951041986,-150.0,0.00017385,2]
[401130583,1767951041995,-2709.0,0.00017408,2]
[401130584,1767951042004,-1124.89305331,0.00017425,2]
[401130585,1767951042014,-150.0,0.00017429,2]
[401130586,1767951042023,-5543.46252923,0.00017448,2]
[401130587,1767951042032,-10546.0,0.00017465,2]
[401130588,1767951042041,-1237.7,0.0001747,2]
[401130589,1767951042051,-150.0,0.00017473,2]
[401130590,1767951042061,-2709.0,0.00017479,2]
[401130591,1767951042071,-1124.89305331,0.00017479,2]
[401130592,1767951042080,-155.42,0.00017484,2]
[401130593,1767951042091,-2107.05119164,0.000175,2]
[401130594,1767951042100,-178.0,0.000175,2]
[401130595,1767951042110,-1000.0,0.000175,2]
[401130596,1767951042119,-1601.1452557,0.000175,2]
[401130597,1767951042129,-150.0,0.00017517,2]
[401130598,1767951042138,-150.0,0.00017561,2]
[401130599,1767951042147,-1124.89305331,0.00017562,2]
[401130600,1767951042157,-155.74193708,0.00017588,2]
[401130601,1767951042166,-574.12855637,0.00017588,2]
[401130602,1767951042175,-576.66,0.00017588,2]
[401130603,1767951042185,-158.08,0.00017591,2]
[401130604,1767951042194,-166.66,0.00017596,2]
[401130605,1767951042204,-1237.7,0.00017603,2]
[401130606,1767951042213,-150.0,0.00017605,2]
[401130607,1767951042222,-7807.75258789,0.0001764,2]
[401130608,1767951042231,-1124.89305331,0.00017644,2]
[401130609,1767951042241,-150.0,0.00017649,2]
[401130610,1767951042250,-155.4,0.00017651,2]
[401130611,1767951042260,-2709.0,0.00017675,2]
[401130612,1767951042270,-2709.0,0.00017692,2]
[401130613,1767951042280,-150.0,0.00017693,2]
[401130614,1767951042289,-1124.89305331,0.00017699,2]
[401130615,1767951042299,-779.93594743,0.000177,2]
[401130616,1767951042308,-1000.0,0.000177,2]
[401130617,1767951042318,-500.0,0.00017704,2]
[401130618,1767951042328,-1000.0,0.00017726,2]
[401130619,1767951042338,-1000.0,0.00017729,2]
[401130620,1767951042347,-1000.0,0.00017734,2]
[401130621,1767951042358,-1237.7,0.00017735,2]
[401130622,1767951042368,-150.0,0.00017737,2]
[401130623,1767951042378,-1000.0,0.00017738,2]
[401130624,1767951042387,-209.58331388,0.00017739,2]
[401130625,1767951042397,-1000.0,0.00017747,2]
[401130626,1767951042406,-1000.0,0.00017752,2]
[401130627,1767951042416,-2709.0,0.00017763,2]
[401130628,1767951042426,-1000.0,0.00017766,2]
[401130629,1767951042437,-1000.0,0.00017768,2]
[401130630,1767951042447,-1000.0,0.00017772,2]
[401130632,1767951042457,-1000.0,0.00017772,2]
[401130634,1767951042466,-1000.0,0.00017778,2]
[401130635,1767951042475,-150.0,0.0001778,2]
[401130636,1767951042486,-1124.89305331,0.00017781,2]
[401130637,1767951042496,-1000.0,0.00017787,2]
[401130638,1767951042505,-1000.0,0.00017788,2]
[401130639,1767951042515,-1000.0,0.00017794,2]
[401130640,1767951042524,-1000.0,0.000178,2]
[401130641,1767951042533,-43709.14658721,0.000178,2]
[401130642,1767951042542,-1000.0,0.00017803,2]
[401130643,1767951042552,-155.42,0.00017803,2]
[401130644,1767951042562,-150.0,0.00017803,2]
[401130645,1767951042572,-150.52,0.00017803,2]
[401130646,1767951042583,-150.0,0.00017803,2]
[401130647,1767951042592,-150.0,0.00017803,2]
[401130648,1767951042602,-5000.0,0.00017813,2]
[401130649,1767951042612,-275.67501,0.0001782,2]
[401130650,1767951042622,-275.67501,0.0001782,2]
[401130651,1767951042632,-1000.0,0.00017823,2]
[401130652,1767951042643,-150.0,0.00017824,2]
[401130653,1767951042653,-1000.0,0.00017825,2]
[401130654,1767951042663,-1000.0,0.00017827,2]
[401130655,1767951042674,-164.77,0.00017829,2]
[401130656,1767951042685,-500.0,0.00017829,2]
[401130657,1767951042695,-275.67501,0.0001783,2]
[401130658,1767951042704,-1000.0,0.00017831,2]
[401130659,1767951042715,-1000.0,0.00017833,2]
[401130660,1767951042727,-1124.89305331,0.00017836,2]
[401130661,1767951042739,-300.0,0.00017838,2]
[401130662,1767951042749,-300.0,0.00017838,2]
[401130663,1767951042760,-300.0,0.00017838,2]
[401130664,1767951042769,-300.0,0.00017838,2]
[401130665,1767951042780,-548.49326873,0.00017838,2]
[401130666,1767951042791,-300.0,0.00017838,2]
[401130667,1767951042800,-300.0,0.00017838,2]
[401130668,1767951042810,-300.0,0.00017838,2]
[401130669,1767951042819,-300.0,0.00017838,2]
[401130670,1767951042831,-500.0,0.00017838,2]
[401130671,1767951042842,-500.0,0.00017838,2]
[401130672,1767951042852,-500.0,0.00017838,2]
[401130673,1767951042862,-500.0,0.00017838,2]
[401130674,1767951042872,-500.0,0.00017838,2]
[401130675,1767951042881,-500.0,0.00017838,2]
[401130676,1767951042890,-500.0,0.00017838,2]
[401130677,1767951042900,-150.0,0.00017838,2]
[401130678,1767951042913,-28826.35489234,0.00017839,2]
[401130679,1767951042927,-378.66,0.00017839,2]
[401130680,1767951042940,-11254.02052474,0.00017839,2]
[401130684,1767951043859,-1174.910634,0.00014194,2]
[401130685,1767951043870,-253.88923684,0.00014194,2]
[401130686,1767951044505,-309.5,0.00014194,2]
[401130687,1767951044516,-4039.40026335,0.00014194,2]